[Event "IND-ch Women 2019"]
[Site "Karaikkudi"]
[Date "2019.07.20"]
[Round "2.17"]
[White "Smaraki, Mohanty"]
[Black "Jain Nityata"]
[Result "0-1"]
[ECO "D85"]
[WhiteElo "1773"]
[BlackElo "2135"]
[Annotator "ChessBase"]
[PlyCount "92"]
[EventDate "2019.07.19"]
[EventType "swiss"]
[EventCountry "IND"]
[SourceTitle "playchess.com"]
[Source "ChessBase"]
[SourceQuality "1"]
[TimeControl "40/5400+30:1800+30"]

1. c4 {[%emt 0:00:00]} Nf6 {[%emt 0:00:00]} 2. Nc3 {[%emt 0:00:00]} d5 {[%emt 0:00:00]} 3. cxd5 {[%emt 0:00:24]} Nxd5 {[%emt 0:00:00]} 4. d4 {[%emt 0:00:05]} g6 {[%emt 0:00:00]} 5. e4 {[%emt 0:00:06]} Nxc3 {[%emt 0:00:05]} 6. bxc3 {[%emt 0:00:04]} Bg7 {[%emt 0:00:03]} 7. Bb2 {[%emt 0:00:31]} c5 {[%emt 0:01:59]} 8. d5 {[%emt 0:00:24]} O-O {[%emt 0:02:29]} 9. Nf3 {[%emt 0:00:32]} Nd7 {[%emt 0:10:04]} 10. Bb5 {[%emt 0:11:00]} a6 {[%emt 0:05:18]} 11. Bxd7 {[%emt 0:00:23]} Bxd7 {[%emt 0:00:23]} 12. O-O {[%emt 0:00:06]} Qa5 {[%emt 0:09:37]} 13. Qc2 {[%emt 0:00:46]} Ba4 {[%emt 0:02:59]} 14. Qc1 {[%emt 0:00:48]} b5 {[%emt 0:11:47]} 15. c4 {[%emt 0:00:50]} Rfc8 {[%emt 0:13:05]} 16. Bxg7 {[%emt 0:01:07]} Kxg7 {[%emt 0:00:05]} 17. Nd2 {[%emt 0:01:02]} Qc7 {[%emt 0:03:12]} 18. f4 {[%emt 0:01:00]} Kg8 {[%emt 0:04:33]} 19. Rf3 {[%emt 0:01:39]} Qd8 {[%emt 0:04:36]} 20. Rh3 {[%emt 0:07:59]} Qf8 {[%emt 0:01:18]} 21. Nf3 {[%emt 0:09:51]} Qg7 {[%emt 0:03:23]} 22. f5 {[%emt 0:05:06]} bxc4 {[%emt 0:05:18]} 23. e5 {[%emt 0:00:57]} Rab8 {[%emt 0:03:08]} 24. fxg6 {[%emt 0:03:31]} hxg6 {[%emt 0:00:34]} 25. Qxc4 {[%emt 0:00:32]} Bb5 {[%emt 0:02:31]} 26. Qc3 {[%emt 0:03:53]} Bd7 {[%emt 0:04:06]} 27. Rg3 {[%emt 0:01:42]} Rb4 {[%emt 0:01:25]} 28. Re1 {[%emt 0:01:02]} Bf5 {[%emt 0:01:58]} 29. Nd2 {[%emt 0:04:34]} Rd4 {[%emt 0:02:25]} 30. Rf1 {[%emt 0:00:10]} Bd7 {[%emt 0:04:51]} 31. e6 {[%emt 0:05:05]} fxe6 {[%emt 0:01:54]} 32. Qc2 {[%emt 0:00:29]} Be8 {[%emt 0:00:18]} 33. dxe6 {[%emt 0:00:18]} Rc6 {[%emt 0:01:10]} 34. Nf3 {[%emt 0:00:43]} Rf4 {[%emt 0:00:31]} 35. Re1 {[%emt 0:00:24]} c4 {[%emt 0:01:06]} 36. Qd2 {[%emt 0:00:50]} Rf6 {[%emt 0:00:59]} 37. Qd8 {[%emt 0:00:53]} Qf8 {[%emt 0:00:10]} 38. Ng5 {[%emt 0:01:00]} c3 {[%emt 0:00:25]} 39. Rc1 {[%emt 0:28:37]} c2 {[%emt 0:00:07]} 40. Rf3 {[%emt 0:00:00]} Rxf3 {[%emt 0:00:00]} 41. Nxf3 {[%emt 0:06:34]} Rd6 {[%emt 0:01:55]} 42. Qxd6 {[%emt 0:00:26]} exd6 {[%emt 0:02:38]} 43. Rxc2 {[%emt 0:00:01]} Qf5 {[%emt 0:02:23]} 44. Re2 {[%emt 0:00:10]} d5 {[%emt 0:01:06]} 45. e7 {[%emt 0:00:13]} d4 {[%emt 0:00:59]} 46. Nxd4 {[%emt 0:00:36]} Qd3 {[%emt 0:00:07]} 0-1

[Event "IND-ch Women 2019"]
[Site "Karaikkudi"]
[Date "2019.07.20"]
[Round "2.18"]
[White "Thipsay, Bagyashree Sathe"]
[Black "Sheena, E.."]
[Result "1-0"]
[ECO "C02"]
[WhiteElo "2093"]
[BlackElo "1763"]
[Annotator "NA"]
[PlyCount "97"]
[EventDate "2019.07.19"]
[EventType "swiss"]
[EventCountry "IND"]
[SourceTitle "playchess.com"]
[Source "ChessBase"]
[SourceQuality "1"]
[TimeControl "40/5400+30:1800+30"]

1. e4 {[%emt 0:00:00]} e6 {[%emt 0:00:00]} 2. d4 {[%emt 1:31:00]} d5 {[%emt 0:00:00]} 3. e5 {[%emt 0:00:00]} c5 {[%emt 0:00:00]} 4. c3 {[%emt 0:00:00]} Nc6 {[%emt 0:00:06]} 5. Nf3 {[%emt 0:00:00]} g6 {[%emt 0:02:38]} (5... Qb6 6. a3 c4 7. Nbd2 Na5 8. g3 Bd7 9. h4 Ne7 10. Bh3 h6 11. O-O O-O-O 12. h5 Kb8 13. Nh4 Rg8 14. Ng2 Qc7 15. Re1 Nc8 16. Rb1 Nb6 17. Nf1 Be7 {½-½ (57) Vachier Lagrave,M (2773)-Vallejo Pons,F (2693) Karlsruhe/Baden Baden 2019}) 6. Bd3 {[%emt 0:00:00] C02: French: Advance Variation} c4 $146 {[%emt 0:01:28]} ({Predecessor:} 6... Bg7 7. h4 h5 8. O-O Nge7 9. Re1 Qc7 10. Bg5 Bd7 11. Qd2 Nf5 12. Bxf5 gxf5 {1-0 (22) Kalegin,E (2418)-Kraidman,Y (2254) Bregenz 2018}) 7. Bc2 {[%emt 0:00:00]} Bg7 {[%emt 0:00:17]} 8. O-O {[%emt 0:00:00]} Nge7 {[%emt 0:02:50]} 9. Bg5 {[%emt 0:00:00]} h6 {[%emt 0:00:52]} 10. Be3 {[%emt 0:00:00]} Nf5 {[%emt 0:02:53]} 11. Nbd2 {[%emt 0:00:00]} g5 {[%emt 0:06:36]} ({Black should try} 11... b5 $11) 12. g4 {[%emt 0:00:00]} Nfe7 {[%emt 0:01:11]} 13. Kg2 {[%emt 0:00:00]} ({White should try} 13. Re1 $16) 13... Bd7 {[%emt 0:09:20]} 14. Rh1 {[%emt 0:00:00]} Ng6 {[%emt 0:00:42]} (14... f5 $11 {keeps the balance.}) 15. Nf1 {[%emt 0:00:00]} (15. Bxg6 $16 fxg6 16. Qc2) 15... Nh4+ {[%emt 0:14:46]} (15... Nf4+ $1 $11 16. Bxf4 gxf4) 16. Nxh4 {[%emt 0:00:00]} gxh4 {[%emt 0:00:11]} 17. h3 {[%emt 0:00:00]} Qe7 {[%emt 0:00:44]} 18. Nd2 {[%emt 0:00:00]} O-O-O {[%emt 0:03:44]} 19. b3 {[%emt 0:00:00]} (19. f4 $16) 19... Na5 {[%emt 0:01:46]} (19... f6 $142) 20. f4 {[%emt 0:00:00]} f6 {[%emt 0:02:23]} 21. Nf3 {[%emt 0:00:00]} fxe5 {[%emt 0:03:03]} 22. dxe5 {[%emt 0:00:00]} Nc6 {[%emt 0:02:04]} 23. b4 {[%emt 0:00:00]} (23. bxc4 $18 dxc4 24. Qe2) 23... Qf7 {[%emt 0:01:47]} 24. Rf1 {[%emt 0:00:00]} Rdg8 {[%emt 0:06:09]} 25. Nxh4 {[%emt 0:00:00]} Bf8 {[%emt 0:06:44]} 26. Kh2 {[%emt 0:00:00]} Be7 {[%emt 0:01:50]} 27. Ng2 {[%emt 0:00:00]} Qg7 {[%emt 0:04:12]} 28. Qd2 {[%emt 0:00:00]} h5 {[%emt 0:02:47]} 29. g5 $18 {[%emt 0:00:00]} h4 {[%emt 0:02:21]} 30. Bd1 {[%emt 0:00:00]} Rh7 {[%emt 0:06:52]} 31. Bd4 {[%emt 0:03:36]} Qf8 {[%emt 0:02:50]} 32. Bg4 {[%emt 0:00:42]} Qd8 {[%emt 0:00:59]} 33. Ne1 {[%emt 0:01:05]} Rf7 {[%emt 0:03:16]} 34. Nf3 {[%emt 0:00:35]} Rgf8 {[%emt 0:02:03]} 35. Be3 {[%emt 0:00:23]} Rh8 {[%emt 0:01:37]} 36. b5 {[%emt 0:00:42]} Nb8 {[%emt 0:00:16]} 37. Nd4 {[%emt 0:00:11]} Bxg5 {[%emt 0:04:27]} 38. fxg5 {[%emt 0:00:16]} Rxf1 {[%emt 0:00:54]} 39. Rxf1 {[%emt 0:00:02]} Qc7 {[%emt 0:00:40]} 40. Nxe6 {[%emt 0:00:00]} Qxe5+ {[%emt 0:00:00]} 41. Bf4 {[%emt 0:01:22]} Qe4 {[%emt 0:04:31]} 42. Re1 {[%emt 0:00:05]} Qd3 {[%emt 0:01:06]} 43. Qxd3 {[%emt 0:02:52]} cxd3 {[%emt 0:00:22]} 44. Nc5 {[%emt 0:00:14]} Bxg4 {[%emt 0:00:11]} 45. hxg4 {[%emt 0:00:01]} Nd7 {[%emt 0:01:24]} 46. Nxd3 {[%emt 0:00:28]} Nb6 {[%emt 0:00:57]} 47. Re7 {[%emt 0:03:57]} Nc4 {[%emt 0:02:34]} 48. Rc7+ {[%emt 0:00:27]} Kd8 {[%emt 0:00:20]} 49. Rxb7 {[%emt 0:00:04]} 1-0

[Event "IND-ch Women 2019"]
[Site "Karaikkudi"]
[Date "2019.07.20"]
[Round "2.19"]
[White "Varshini, V."]
[Black "Shah, Vishwa"]
[Result "1/2-1/2"]
[ECO "C90"]
[WhiteElo "2087"]
[BlackElo "1734"]
[Annotator "NA"]
[PlyCount "87"]
[EventDate "2019.07.19"]
[EventType "swiss"]
[EventCountry "IND"]
[SourceTitle "playchess.com"]
[Source "ChessBase"]
[SourceQuality "1"]
[TimeControl "40/5400+30:1800+30"]

1. e4 {[%emt 0:00:00]} e5 {[%emt 0:00:00]} 2. Nf3 {[%emt 0:00:00]} Nc6 {[%emt 0:00:00]} 3. Bb5 {[%emt 0:00:00]} a6 {[%emt 0:00:00]} 4. Ba4 {[%emt 0:00:00]} Nf6 {[%emt 0:00:00]} 5. O-O {[%emt 0:00:07]} Be7 {[%emt 0:00:00]} 6. Re1 {[%emt 0:00:13]} b5 {[%emt 0:00:07]} 7. Bb3 {[%emt 0:00:05]} d6 {[%emt 0:00:05]} 8. c3 {[%emt 0:00:13]} O-O {[%emt 0:00:06]} 9. d3 {[%emt 0:01:44]} Na5 {[%emt 0:00:11]} 10. Bc2 {[%emt 0:00:04]} c5 {[%emt 0:00:03]} 11. Nbd2 {[%emt 0:00:11]} Nc6 {[%emt 0:00:14]} 12. Nf1 {[%emt 0:00:46]} Re8 {[%emt 0:00:44]} 13. Ng3 {[%emt 0:01:17]} Be6 {[%emt 0:03:27]} 14. h3 {[%emt 0:10:43]} h6 {[%emt 0:00:13]} 15. d4 {[%emt 0:03:33]} cxd4 {[%emt 0:00:07]} 16. cxd4 {[%emt 0:00:05]} exd4 {[%emt 0:02:33]} 17. Nxd4 {[%emt 0:05:36]} Nxd4 {[%emt 0:00:13]} 18. Qxd4 {[%emt 0:00:09]} Qc7 {[%emt 0:04:38]} (18... Rc8 $5 {[%cal Rc8c2]} 19. Re2 Nd7 $11) 19. Bb3 {[%emt 0:06:00]} Bxb3 {[%emt 0:07:02]} 20. axb3 {[%emt 0:00:47] [#]} d5 $1 {[%emt 0:11:02]} 21. exd5 {[%emt 0:32:05]} Bc5 {[%emt 0:02:59]} 22. Rxe8+ $1 {[%emt 0:00:16]} Rxe8 {[%emt 0:00:05]} 23. Bf4 {[%emt 0:00:05]} Bxd4 {[%emt 0:16:12]} (23... Qb6 $5 24. Qd2 $8 Rd8 $11) 24. Bxc7 {[%emt 0:00:10]} Nxd5 {[%emt 0:00:05]} 25. Bd6 {[%emt 0:00:29]} Bxb2 {[%emt 0:25:07]} 26. Rxa6 {[%emt 0:00:25]} Re1+ {[%emt 0:27:47]} 27. Kh2 {[%emt 0:02:34]} Be5 $11 {[%emt 0:00:00]} 28. Ra8+ {[%emt 0:21:07]} Kh7 {[%emt 0:00:00]} 29. Bxe5 {[%emt 0:00:37]} Rxe5 {[%emt 0:00:00]} 30. Rb8 {[%emt 0:00:02]} Nf4 {[%emt 0:00:00]} 31. Rd8 {[%emt 0:03:33]} Ne6 {[%emt 0:00:00]} 32. Rd3 {[%emt 0:00:42]} Nc5 {[%emt 0:00:00]} 33. Rc3 {[%emt 0:00:53]} b4 {[%emt 0:00:00]} 34. Rc4 {[%emt 0:00:24]} Nxb3 {[%emt 0:00:00]} 35. Rxb4 {[%emt 0:00:05]} Nc5 {[%emt 0:00:00]} 36. f4 {[%emt 0:02:03]} Re8 {[%emt 0:00:00]} 37. Rc4 {[%emt 0:01:08]} Ne6 {[%emt 0:02:13]} 38. f5 {[%emt 0:00:23]} Nf8 {[%emt 0:00:23]} 39. Rg4 {[%emt 0:03:57]} g6 {[%emt 0:01:06]} 40. Ne4 {[%emt 0:00:00]} Re5 {[%emt 0:00:00]} 41. fxg6+ {[%emt 0:05:43]} fxg6 {[%emt 0:03:39]} 42. Ng3 {[%emt 0:00:15]} h5 {[%emt 0:07:11]} 43. Re4 {[%emt 0:00:30]} Rxe4 {[%emt 0:00:21]} 44. Nxe4 {[%emt 0:00:04]} 1/2-1/2

[Event "IND-ch Women 2019"]
[Site "Karaikkudi"]
[Date "2019.07.20"]
[Round "2.20"]
[White "Harshita Guddanti"]
[Black "Boramanikar Tanisha S"]
[Result "1-0"]
[ECO "B33"]
[WhiteElo "2078"]
[BlackElo "1720"]
[Annotator "NA"]
[PlyCount "69"]
[EventDate "2019.07.19"]
[EventType "swiss"]
[EventCountry "IND"]
[SourceTitle "playchess.com"]
[Source "ChessBase"]
[SourceQuality "1"]
[TimeControl "40/5400+30:1800+30"]

1. e4 {[%emt 0:00:02]} c5 {[%emt 0:00:00]} 2. Nf3 {[%emt 0:00:07]} Nc6 {[%emt 0:00:03]} 3. d4 {[%emt 0:00:06]} cxd4 {[%emt 0:00:08]} 4. Nxd4 {[%emt 0:00:04]} Nf6 {[%emt 0:00:05]} 5. Nc3 {[%emt 0:00:06]} e5 {[%emt 0:00:09]} 6. Ndb5 {[%emt 0:00:06]} d6 {[%emt 0:00:17]} 7. Bg5 {[%emt 0:00:50]} a6 {[%emt 0:00:12]} 8. Na3 {[%emt 0:00:04]} b5 {[%emt 0:00:13]} 9. Bxf6 {[%emt 0:00:11]} gxf6 {[%emt 0:00:09]} 10. Nd5 {[%emt 0:00:05]} Be6 {[%emt 0:01:03]} 11. c3 {[%emt 0:05:12]} Bg7 {[%emt 0:02:02]} 12. Bd3 {[%emt 0:03:09]} f5 {[%emt 0:01:29]} 13. Nxb5 {[%emt 0:01:07] B33: Sicilian: Pelikan and Sveshnikov Variations} Bxd5 {[%emt 0:05:12]} (13... axb5 $11 14. Bxb5 Rc8) 14. exd5 {[%emt 0:00:54]} Ne7 {[%emt 0:00:23]} 15. Na3 {[%emt 0:00:09]} O-O {[%emt 0:05:06]} 16. O-O {[%emt 0:00:08]} e4 {[%emt 0:04:50]} 17. Bc2 {[%emt 0:02:07]} (17. Be2 Ng6 18. Qc2 Qg5 19. Nc4 Rad8 20. Kh1 {1-0 (77) Oleksienko,M (2582)-Lenic,L (2657) Slovenia 2018}) 17... Qc7 $146 {[%emt 0:05:30]} ({Predecessor:} 17... Qb6 18. Qc1 Nxd5 19. Rd1 Qc5 20. Bb3 Ne7 {1-0 (31) Pichot,A (2552)-Pavlov,S (2485) Moscow 2018}) 18. Qd2 {[%emt 0:05:10]} Rfb8 {[%emt 0:06:33]} 19. Bb3 {[%emt 0:04:52]} a5 {[%emt 0:02:33]} 20. Rfe1 {[%emt 0:04:07]} Ng6 {[%emt 0:04:37]} 21. Bc4 {[%emt 0:10:50]} Be5 {[%emt 0:09:39]} 22. Bf1 {[%emt 0:08:25]} Bf4 {[%emt 0:03:25]} 23. Qc2 {[%emt 0:07:11]} Ne5 {[%emt 0:02:50]} 24. Nb5 {[%emt 0:05:44]} Qe7 {[%emt 0:02:59]} (24... Qd8 $11 {keeps the balance.}) 25. Be2 {[%emt 0:06:42]} Qh4 {[%emt 0:16:11]} 26. g3 $16 {[%emt 0:02:56] Double Attack} Qh3 {[%emt 0:00:23]} 27. Nd4 {[%emt 0:01:27]} Bh6 {[%emt 0:03:47]} 28. b3 {[%emt 0:06:24]} Kh8 {[%emt 0:04:05]} 29. Bf1 {[%emt 0:04:22]} Qh5 {[%emt 0:00:41]} 30. Qd1 {[%emt 0:01:51]} Qg6 {[%emt 0:00:41]} 31. Bh3 {[%emt 0:02:40]} Nd3 {[%emt 0:06:30]} 32. Bxf5 {[%emt 0:02:32]} Qf6 {[%emt 0:00:33]} 33. Rxe4 {[%emt 0:01:52]} Nc5 {[%emt 0:00:19]} 34. Rh4 {[%emt 0:01:53]} Rg8 {[%emt 0:00:40]} 35. Qh5 {[%emt 0:01:17]} 1-0

[Event "IND-ch Women 2019"]
[Site "Karaikkudi"]
[Date "2019.07.20"]
[Round "2.21"]
[White "ThamaraiSelvi, P."]
[Black "Mrudul Dehankar"]
[Result "1/2-1/2"]
[ECO "E11"]
[WhiteElo "1752"]
[BlackElo "2074"]
[Annotator "NA"]
[PlyCount "69"]
[EventDate "2019.07.19"]
[EventType "swiss"]
[EventCountry "IND"]
[SourceTitle "playchess.com"]
[Source "ChessBase"]
[SourceQuality "1"]
[TimeControl "40/5400+30:1800+30"]

1. d4 {[%emt 0:00:00]} Nf6 {[%emt 0:00:00]} 2. c4 {[%emt 0:00:00]} e6 {[%emt 0:00:00]} 3. Nf3 {[%emt 0:00:05]} Bb4+ {[%emt 0:00:00]} 4. Bd2 {[%emt 0:00:10]} c5 {[%emt 0:00:12]} 5. a3 {[%emt 0:02:52]} Bxd2+ {[%emt 0:00:20]} 6. Nbxd2 {[%emt 0:00:54] E11: Bogo-Indian} (6. Qxd2 cxd4 7. Nxd4 O-O 8. Nc3 d5 9. e3 dxc4 10. Bxc4 Bd7 11. O-O Nc6 12. Rfd1 Nxd4 13. Qxd4 Bc6 14. Qxd8 {½-½ (14) Stupak,K (2535)-Moiseenko,A (2663) Gjakova 2016}) 6... cxd4 {[%emt 0:03:05]} 7. Nxd4 {[%emt 0:00:19]} Nc6 {[%emt 0:00:54]} 8. Nxc6 $146 {[%emt 0:05:26]} ({Predecessor:} 8. N2f3 O-O 9. e3 e5 10. Nxc6 bxc6 11. Qc2 Qe7 12. Be2 d5 13. O-O {0-1 (46) Benyeda,M (1332)-Csiki,E (1959) Hungary 2016}) 8... dxc6 {[%emt 0:01:09]} 9. e3 {[%emt 0:03:21]} e5 {[%emt 0:02:27]} 10. Qc2 {[%emt 0:05:14]} Qe7 {[%emt 0:04:41]} 11. Bd3 {[%emt 0:06:45]} O-O {[%emt 0:01:54]} 12. O-O {[%emt 0:01:31]} Re8 {[%emt 0:04:31]} 13. Ne4 {[%emt 0:19:37]} Nxe4 {[%emt 0:06:55]} 14. Bxe4 {[%emt 0:00:58]} g6 {[%emt 0:01:55]} 15. c5 {[%emt 0:05:01]} Be6 {[%emt 0:12:09]} 16. b4 {[%emt 0:04:17]} f5 {[%emt 0:18:11]} 17. Bd3 {[%emt 0:04:33]} Qf7 {[%emt 0:00:37]} 18. Qc3 {[%emt 0:09:17]} Rad8 {[%emt 0:06:09]} 19. Bc2 {[%emt 0:03:07]} Rd5 {[%emt 0:05:10]} 20. Rad1 {[%emt 0:04:45]} Red8 {[%emt 0:03:30]} 21. Rxd5 {[%emt 0:03:33]} Rxd5 $14 {[%emt 0:00:11]} 22. Bb3 {[%emt 0:03:30]} Rd7 {[%emt 0:01:43]} 23. Rd1 {[%emt 0:00:11]} Bxb3 {[%emt 0:02:50]} 24. Rxd7 {[%emt 0:00:08]} Qxd7 {[%emt 0:00:03]} 25. Qxb3+ {[%emt 0:00:06]} Kg7 {[%emt 0:01:15]} 26. Qc2 {[%emt 0:03:39]} f4 {[%emt 0:08:18]} 27. Kf1 {[%emt 0:04:34]} h5 {[%emt 0:04:38]} 28. exf4 {[%emt 0:01:06]} exf4 {[%emt 0:02:49]} 29. Qc3+ {[%emt 0:00:40]} Kh7 {[%emt 0:01:24]} 30. f3 {[%emt 0:01:42]} Qf5 {[%emt 0:03:35]} 31. Qd4 {[%emt 0:03:01]} Qb1+ {[%emt 0:02:33]} 32. Kf2 {[%emt 0:00:01]} Qc2+ {[%emt 0:00:11]} 33. Kf1 {[%emt 0:00:11]} Qc1+ {[%emt 0:00:13]} 34. Kf2 {[%emt 0:00:03]} Qc2+ {[%emt 0:00:41]} 35. Kf1 {[%emt 0:00:05]} 1/2-1/2

[Event "IND-ch Women 2019"]
[Site "Karaikkudi"]
[Date "2019.07.20"]
[Round "3.2"]
[White "Kulkarni Bhakti"]
[Black "Saranya, J."]
[Result "1-0"]
[ECO "A65"]
[WhiteElo "2388"]
[BlackElo "2067"]
[Annotator "NA RC"]
[PlyCount "111"]
[EventDate "2019.07.19"]
[EventType "swiss"]
[EventCountry "IND"]
[SourceTitle "playchess.com"]
[Source "ChessBase"]
[SourceQuality "1"]
[TimeControl "40/5400+30:1800+30"]

1. d4 {[%emt 0:00:00]} Nf6 {[%emt 0:00:00]} 2. c4 {[%emt 0:00:05]} g6 {[%emt 0:00:00]} 3. Nc3 {[%emt 0:00:13]} Bg7 {[%emt 0:00:00]} 4. e4 {[%emt 0:00:22]} d6 {[%emt 0:00:06]} 5. Bd3 {[%emt 0:00:24]} O-O {[%emt 0:01:21]} 6. Nge2 {[%emt 0:00:09]} c5 {[%emt 0:02:53]} 7. d5 {[%emt 0:00:07]} e6 {[%emt 0:00:36]} 8. h3 {[%emt 0:00:11]} exd5 {[%emt 0:00:32]} 9. cxd5 {[%emt 0:00:23]} Re8 {[%emt 0:00:57]} 10. O-O {[%emt 0:01:21]} Nbd7 {[%emt 0:02:44]} 11. Ng3 {[%emt 0:07:32]} Qe7 $14 {[%emt 0:08:59]} 12. Re1 {[%emt 0:08:55]} a6 {[%emt 0:03:01]} 13. a4 {[%emt 0:00:26]} Qf8 {[%emt 0:01:02]} 14. Be3 {[%emt 0:07:29]} h5 {[%emt 0:05:33]} 15. f4 {[%emt 0:03:12]} h4 {[%emt 0:06:14]} 16. Nf1 {[%emt 0:00:19]} Nh5 {[%emt 0:00:46]} 17. Qf3 {[%emt 0:08:10]} Rb8 {[%emt 0:05:33]} 18. Qf2 {[%emt 0:04:41]} Bf6 {[%emt 0:02:45]} 19. Be2 {[%emt 0:07:32]} Ng7 {[%emt 0:01:54]} 20. Bg4 {[%emt 0:06:18]} Bd8 {[%emt 0:13:06]} 21. e5 {[%emt 0:06:12]} f5 {[%emt 0:03:53]} 22. exf6 {[%emt 0:07:27]} Bxf6 {[%emt 0:02:02]} 23. Nd2 {[%emt 0:02:48]} Nf5 {[%emt 0:06:50]} 24. Bxf5 {[%emt 0:04:02]} gxf5 {[%emt 0:00:09]} 25. Nf3 {[%emt 0:01:48]} Qh6 {[%emt 0:04:32]} 26. Bd2 {[%emt 0:00:29]} Rd8 {[%emt 0:05:42]} 27. Ng5 {[%emt 0:07:35]} Nf8 {[%emt 0:01:09]} 28. Re2 {[%emt 0:02:38]} Bd7 {[%emt 0:01:27]} 29. Rae1 {[%emt 0:00:05]} Re8 {[%emt 0:04:18]} 30. Rxe8 {[%emt 0:03:00]} Rxe8 {[%emt 0:00:12]} 31. Rxe8 {[%emt 0:00:22]} Bxe8 {[%emt 0:00:05]} 32. Qe1 {[%emt 0:00:29]} Bf7 {[%emt 0:01:17]} 33. Nxf7 {[%emt 0:01:41]} Kxf7 {[%emt 0:03:23]} 34. Qb1 {[%emt 0:02:10]} Bd4+ {[%emt 0:00:42]} 35. Kh1 {[%emt 0:00:03]} Qf6 {[%emt 0:00:38]} 36. a5 {[%emt 0:02:24]} Ng6 {[%emt 0:02:05]} 37. Qc2 {[%emt 0:00:10]} Ne7 {[%emt 0:06:28]} 38. Qb3 {[%emt 0:00:25]} Bxc3 {[%emt 0:02:47]} 39. Bxc3 {[%emt 0:03:06]} Qh6 {[%emt 0:00:55]} 40. Qxb7 {[%emt 0:00:00]} Qxf4 {[%emt 0:00:00]} 41. Qxa6 {[%emt 0:04:20]} Nxd5 {[%emt 0:04:42]} 42. Qd3 {[%emt 0:08:11]} Nc7 {[%emt 0:10:26]} 43. Bd2 {[%emt 0:02:08]} Qe5 {[%emt 0:04:21]} 44. Qc4+ {[%emt 0:01:41]} Ke8 {[%emt 0:01:36]} 45. Qa4+ {[%emt 0:02:28]} Kd8 {[%emt 0:03:21]} 46. Qxh4+ {[%emt 0:04:08]} Kc8 {[%emt 0:00:08]} 47. Bc3 {[%emt 0:00:16]} Qe3 {[%emt 0:02:20]} 48. Qa4 {[%emt 0:02:59]} d5 {[%emt 0:03:06]} 49. Qc2 {[%emt 0:01:40]} f4 {[%emt 0:03:54]} 50. Bd2 {[%emt 0:00:47]} Qe2 {[%emt 0:01:28]} 51. Qf5+ {[%emt 0:03:13]} Qe6 {[%emt 0:01:50]} 52. Qxf4 {[%emt 0:04:09]} Kb7 {[%emt 0:00:08]} 53. h4 {[%emt 0:00:35]} Qe2 {[%emt 0:01:20]} 54. Qe3 {[%emt 0:00:58]} Qd1+ {[%emt 0:00:43]} 55. Kh2 {[%emt 0:00:08]} d4 {[%emt 0:00:14]} 56. Qf3+ {[%emt 0:00:41]} 1-0

[Event "IND-ch Women 2019"]
[Site "Karaikkudi"]
[Date "2019.07.20"]
[Round "3.3"]
[White "Kiran, Manisha Mohanty"]
[Black "Divya Deshmukh"]
[Result "1/2-1/2"]
[ECO "B94"]
[WhiteElo "2054"]
[BlackElo "2373"]
[Annotator "NA"]
[PlyCount "57"]
[EventDate "2019.07.19"]
[EventType "swiss"]
[EventCountry "IND"]
[SourceTitle "playchess.com"]
[Source "ChessBase"]
[SourceQuality "1"]
[TimeControl "40/5400+30:1800+30"]

1. e4 {[%emt 0:00:36]} c5 {[%emt 0:00:00]} 2. Nf3 {[%emt 0:00:05]} d6 {[%emt 0:00:00]} 3. d4 {[%emt 0:00:08]} cxd4 {[%emt 0:00:00]} 4. Nxd4 {[%emt 0:00:06]} Nf6 {[%emt 0:00:00]} 5. Nc3 {[%emt 0:00:08]} a6 {[%emt 0:00:00]} 6. Bg5 {[%emt 0:00:07]} Nbd7 {[%emt 0:00:00]} 7. Qe2 {[%emt 0:00:07]} e6 {[%emt 0:00:14]} 8. O-O-O {[%emt 0:00:08]} Qc7 {[%emt 0:00:03]} 9. Kb1 {[%emt 0:00:11]} b5 {[%emt 0:00:13]} 10. a3 {[%emt 0:00:08]} Be7 {[%emt 0:00:04]} 11. h4 {[%emt 0:00:05]} Bb7 {[%emt 0:00:11]} 12. Rh3 {[%emt 0:00:21]} O-O {[%emt 0:06:05]} 13. g4 {[%emt 0:00:58]} Rfe8 {[%emt 0:01:35]} 14. f4 $14 {[%emt 0:08:22]} Rac8 {[%emt 0:13:50]} 15. h5 {[%emt 0:07:13]} Qb6 {[%emt 0:09:43]} 16. Bg2 {[%emt 0:05:01]} Rc4 {[%emt 0:00:48]} 17. Nb3 {[%emt 0:02:14]} Rc7 {[%emt 0:23:25]} 18. Bh4 {[%emt 0:03:17]} b4 {[%emt 0:09:52]} 19. axb4 {[%emt 0:04:33]} Rec8 {[%emt 0:05:21]} 20. g5 {[%emt 0:03:12]} Ne8 {[%emt 0:00:12]} 21. f5 {[%emt 0:12:23]} Qxb4 {[%emt 0:04:41]} 22. fxe6 {[%emt 0:05:47]} fxe6 {[%emt 0:00:11]} 23. Qg4 {[%emt 0:00:32]} Nf8 {[%emt 0:01:51]} 24. Rf1 {[%emt 0:08:52]} d5 {[%emt 0:03:28]} 25. Be1 {[%emt 0:06:54]} Qc4 {[%emt 0:05:52]} 26. Na5 {[%emt 0:07:02]} Qc5 {[%emt 0:00:42]} 27. Nb3 {[%emt 0:00:38]} Qc4 {[%emt 0:00:12]} 28. Na5 {[%emt 0:00:32]} Qc5 {[%emt 0:00:11]} 29. Nb3 {[%emt 0:02:03]} 1/2-1/2

[Event "IND-ch Women 2019"]
[Site "Karaikkudi"]
[Date "2019.07.20"]
[Round "3.4"]
[White "Meenal Gupta"]
[Black "Nandhidhaa, P V"]
[Result "0-1"]
[ECO "B40"]
[WhiteElo "2004"]
[BlackElo "2259"]
[Annotator "NA"]
[PlyCount "66"]
[EventDate "2019.07.19"]
[EventType "swiss"]
[EventCountry "IND"]
[SourceTitle "playchess.com"]
[Source "ChessBase"]
[SourceQuality "1"]
[TimeControl "40/5400+30:1800+30"]

1. e4 {[%emt 0:00:00]} c5 {[%emt 0:00:00]} 2. Nf3 {[%emt 0:00:00]} e6 {[%emt 0:00:00]} 3. d4 {[%emt 0:00:01]} cxd4 {[%emt 0:00:00]} 4. Nxd4 {[%emt 0:00:05]} Nc6 {[%emt 0:00:00]} 5. Nxc6 {[%emt 0:00:06]} bxc6 {[%emt 0:00:03]} 6. Bd3 {[%emt 0:00:07]} Nf6 {[%emt 0:00:12]} 7. Nd2 {[%emt 0:00:07]} d5 {[%emt 0:00:07]} 8. O-O {[%emt 0:00:39]} Qc7 {[%emt 0:00:07]} 9. Qe2 {[%emt 0:04:07]} Bd6 {[%emt 0:00:06]} 10. h3 {[%emt 0:08:25]} O-O {[%emt 0:00:24]} 11. b3 $11 {[%emt 0:09:25]} e5 {[%emt 0:00:45]} 12. a4 {[%emt 0:03:00]} (12. Bb2 $11 {keeps the balance.}) 12... Qe7 {[%emt 0:12:32]} 13. Bb2 {[%emt 0:02:39]} Re8 {[%emt 0:00:21]} 14. Rfd1 {[%emt 0:01:51]} Bb7 {[%emt 0:04:42]} 15. a5 {[%emt 0:05:26]} Rad8 {[%emt 0:01:25]} 16. a6 {[%emt 0:04:59]} Bc8 {[%emt 0:00:09]} 17. Bc3 {[%emt 0:03:45]} Bc7 {[%emt 0:06:20]} 18. Ba5 {[%emt 0:03:32]} g6 {[%emt 0:02:34]} 19. Bxc7 {[%emt 0:09:35]} Qxc7 {[%emt 0:00:18]} 20. Qf3 {[%emt 0:00:21]} Nh5 {[%emt 0:03:10]} 21. Bf1 {[%emt 0:04:34]} Nf4 {[%emt 0:01:08]} 22. g3 {[%emt 0:03:52]} Ne6 {[%emt 0:01:36]} 23. Qe3 {[%emt 0:10:37]} Nd4 {[%emt 0:04:02]} 24. Rdc1 {[%emt 0:00:07]} Qe7 {[%emt 0:07:22]} 25. c4 {[%emt 0:03:31]} dxe4 {[%emt 0:02:25]} 26. Nxe4 {[%emt 0:01:06]} f5 {[%emt 0:00:57]} 27. Nd2 {[%emt 0:01:01]} f4 {[%emt 0:14:08]} 28. gxf4 {[%emt 0:02:45]} Nf5 {[%emt 0:07:49]} 29. Qc3 {[%emt 0:00:06]} Qh4 {[%emt 0:05:27]} 30. Ne4 {[%emt 0:01:27]} Rf8 {[%emt 0:04:03]} 31. fxe5 {[%emt 0:05:15]} Qxe4 {[%emt 0:01:21]} 32. Bg2 {[%emt 0:00:30]} Qf4 {[%emt 0:00:34]} 33. Bxc6 {[%emt 0:00:16]} Nd4 {[%emt 0:00:28]} 0-1